[Event "Titled Tuesday Blitz August 17 2021"]
[White "Pulvett Marin, Daniel Eduardo"]
[Black "Torkkola, Henri"]
[WhiteFideId "3900410"]
[BlackFideId "507660"]
[WhiteElo "2413"]
[BlackElo "2137"]
[Result "0-1"]
[Round "01"]
[TimeControl "180+1"]
[Date "2021.08.18"]
[WhiteClock "0:00:01"]
[BlackClock "0:00:24"]

1. e4 {[%clk 0:02:59]}  e5 {[%clk 0:02:59]} 2. Nf3 {[%clk 0:02:59]}  Nc6 {[%clk 0:02:58]} 3. Nc3 {[%clk 0:02:49]}  Nf6 {[%clk 0:02:58]} 4. Be2 {[%clk 0:02:48]}  Be7 {[%clk 0:02:53]} 5. O-O {[%clk 0:02:46]}  O-O {[%clk 0:02:53]} 6. Re1 {[%clk 0:02:44]}  Re8 {[%clk 0:02:53]} 7. d3 {[%clk 0:02:37]}  d6 {[%clk 0:02:49]} 8. h3 {[%clk 0:02:33]}  h6 {[%clk 0:02:48]} 9. Be3 {[%clk 0:02:32]}  Bf8 {[%clk 0:02:43]} 10. Qd2 {[%clk 0:02:29]}  Ne7 {[%clk 0:02:42]} 11. d4 {[%clk 0:02:28]}  exd4 {[%clk 0:02:35]} 12. Nxd4 {[%clk 0:02:21]}  Ng6 {[%clk 0:02:30]} 13. Nf5 {[%clk 0:02:15]}  Nxe4 {[%clk 0:02:22]} 14. Nxe4 {[%clk 0:02:13]}  Bxf5 {[%clk 0:02:22]} 15. Ng3 {[%clk 0:02:10]}  Be6 {[%clk 0:02:17]} 16. f4 {[%clk 0:02:04]}  Bd7 {[%clk 0:02:07]} 17. Bd3 {[%clk 0:02:01]}  Nh4 {[%clk 0:02:00]} 18. c3 {[%clk 0:01:56]}  Bc6 {[%clk 0:01:58]} 19. Bf1 {[%clk 0:01:54]}  Qf6 {[%clk 0:01:37]} 20. Qf2 {[%clk 0:01:41]}  Nf5 {[%clk 0:01:30]} 21. Nxf5 {[%clk 0:01:38]}  Qxf5 {[%clk 0:01:31]} 22. Rad1 {[%clk 0:01:38]}  a6 {[%clk 0:01:18]} 23. Bd3 {[%clk 0:01:36]}  Be4 {[%clk 0:01:16]} 24. Bxe4 {[%clk 0:01:13]}  Rxe4 {[%clk 0:01:14]} 25. g4 {[%clk 0:01:07]}  Qe6 {[%clk 0:01:10]} 26. f5 {[%clk 0:01:04]}  Qe5 {[%clk 0:01:04]} 27. Bd4 {[%clk 0:01:00]}  Rxe1+ {[%clk 0:01:04]} 28. Rxe1 {[%clk 0:01:00]}  Qd5 {[%clk 0:01:03]} 29. a3 {[%clk 0:00:36]}  c5 {[%clk 0:01:01]} 30. Be3 {[%clk 0:00:34]}  Re8 {[%clk 0:01:01]} 31. Bf4 {[%clk 0:00:27]}  Rxe1+ {[%clk 0:00:57]} 32. Qxe1 {[%clk 0:00:27]}  Qc6 {[%clk 0:00:53]} 33. Qe3 {[%clk 0:00:26]}  d5 {[%clk 0:00:50]} 34. g5 {[%clk 0:00:20]}  hxg5 {[%clk 0:00:49]} 35. Bxg5 {[%clk 0:00:20]}  d4 {[%clk 0:00:50]} 36. cxd4 {[%clk 0:00:20]}  cxd4 {[%clk 0:00:50]} 37. Qg3 {[%clk 0:00:19]}  f6 {[%clk 0:00:36]} 38. Bf4 {[%clk 0:00:14]}  Qd5 {[%clk 0:00:35]} 39. Qd3 {[%clk 0:00:12]}  Bd6 {[%clk 0:00:32]} 40. Bd2 {[%clk 0:00:09]}  b5 {[%clk 0:00:27]} 41. a4 {[%clk 0:00:04]}  Kf7 {[%clk 0:00:27]} 42. axb5 {[%clk 0:00:04]}  axb5 {[%clk 0:00:28]} 43. Bc3 {[%clk 0:00:02]}  Bc5 {[%clk 0:00:25]} 44. Bd2 {[%clk 0:00:02]}  Qc4 {[%clk 0:00:24]} 45. Qe4 {[%clk 0:00:01]}  d3+ {[%clk 0:00:24]} 46. Kg2 {[%clk 0:00:01]}  Qxe4+ {[%clk 0:00:24]} 0-1


[Site "https://www.chess.com"]

[Event "Titled Tuesday Blitz August 17 2021"]
[White "Quintiliano Pinto, Renato R."]
[Black "Nguyen Hong Nhung"]
[WhiteFideId "2117568"]
[BlackFideId "12412201"]
[WhiteElo "2439"]
[BlackElo "1661"]
[Result "1-0"]
[Round "01"]
[TimeControl "180+1"]
[Date "2021.08.18"]
[WhiteClock "0:00:25"]
[BlackClock "0:00:17"]

1. e4 {[%clk 0:03:00]}  c5 {[%clk 0:02:59]} 2. Nf3 {[%clk 0:03:01]}  e6 {[%clk 0:02:59]} 3. c3 {[%clk 0:03:01]}  Nf6 {[%clk 0:02:58]} 4. e5 {[%clk 0:03:01]}  Nd5 {[%clk 0:02:57]} 5. d4 {[%clk 0:03:02]}  cxd4 {[%clk 0:02:57]} 6. cxd4 {[%clk 0:03:02]}  d6 {[%clk 0:02:57]} 7. Bc4 {[%clk 0:03:03]}  Nb6 {[%clk 0:02:57]} 8. Bd3 {[%clk 0:03:01]}  Nc6 {[%clk 0:02:54]} 9. Bg5 {[%clk 0:03:00]}  Be7 {[%clk 0:02:51]} 10. Bxe7 {[%clk 0:03:00]}  Qxe7 {[%clk 0:02:52]} 11. O-O {[%clk 0:03:00]}  dxe5 {[%clk 0:02:46]} 12. dxe5 {[%clk 0:03:00]}  O-O {[%clk 0:02:45]} 13. Nc3 {[%clk 0:03:00]}  Nb4 {[%clk 0:02:42]} 14. Be4 {[%clk 0:02:56]}  Rd8 {[%clk 0:02:34]} 15. Qe2 {[%clk 0:02:49]}  N4d5 {[%clk 0:02:17]} 16. Nb5 {[%clk 0:02:48]}  Bd7 {[%clk 0:02:10]} 17. Nd6 {[%clk 0:02:45]}  Bc6 {[%clk 0:02:08]} 18. g3 {[%clk 0:02:39]}  Nd7 {[%clk 0:01:58]} 19. Nc4 {[%clk 0:01:48]}  Rac8 {[%clk 0:01:34]} 20. Na5 {[%clk 0:01:40]}  Nc5 {[%clk 0:01:02]} 21. Nxc6 {[%clk 0:01:23]}  Rxc6 {[%clk 0:01:03]} 22. Bb1 {[%clk 0:01:03]}  Rdc8 {[%clk 0:00:30]} 23. a3 {[%clk 0:00:56]}  g6 {[%clk 0:00:18]} 24. Ba2 {[%clk 0:00:53]}  Nb6 {[%clk 0:00:15]} 25. Nd4 {[%clk 0:00:51]}  R6c7 {[%clk 0:00:13]} 26. Nb5 {[%clk 0:00:51]}  Rd7 {[%clk 0:00:13]} 27. Nd6 {[%clk 0:00:51]}  Rcd8 {[%clk 0:00:13]} 28. Rac1 {[%clk 0:00:49]}  Na6 {[%clk 0:00:10]} 29. Ne4 {[%clk 0:00:49]}  Kg7 {[%clk 0:00:08]} 30. b4 {[%clk 0:00:47]}  Rc7 {[%clk 0:00:08]} 31. Nd6 {[%clk 0:00:43]}  Rxc1 {[%clk 0:00:08]} 32. Rxc1 {[%clk 0:00:43]}  Nc7 {[%clk 0:00:09]} 33. Nxb7 {[%clk 0:00:41]}  Ncd5 {[%clk 0:00:08]} 34. Nxd8 {[%clk 0:00:40]}  Qxd8 {[%clk 0:00:08]} 35. Qd2 {[%clk 0:00:40]}  Qe7 {[%clk 0:00:07]} 36. h4 {[%clk 0:00:39]}  h5 {[%clk 0:00:06]} 37. Qg5 {[%clk 0:00:38]}  Qd7 {[%clk 0:00:06]} 38. Rc5 {[%clk 0:00:35]}  Qa4 {[%clk 0:00:06]} 39. Qc1 {[%clk 0:00:32]}  Qa6 {[%clk 0:00:05]} 40. Bc4 {[%clk 0:00:21]}  Nxc4 {[%clk 0:00:06]} 41. Rxc4 {[%clk 0:00:21]}  Qb6 {[%clk 0:00:06]} 42. Rc5 {[%clk 0:00:20]}  Qb8 {[%clk 0:00:06]} 43. Qe1 {[%clk 0:00:18]}  Qb6 {[%clk 0:00:07]} 44. Qd2 {[%clk 0:00:17]}  Qb7 {[%clk 0:00:06]} 45. Qd4 {[%clk 0:00:15]}  Qd7 {[%clk 0:00:06]} 46. b5 {[%clk 0:00:15]}  Qb7 {[%clk 0:00:06]} 47. a4 {[%clk 0:00:15]}  Qb6 {[%clk 0:00:05]} 48. Rxd5 {[%clk 0:00:15]}  exd5 {[%clk 0:00:06]} 49. Qxb6 {[%clk 0:00:15]}  axb6 {[%clk 0:00:07]} 50. a5 {[%clk 0:00:16]}  d4 {[%clk 0:00:07]} 51. axb6 {[%clk 0:00:15]}  d3 {[%clk 0:00:07]} 52. Kf1 {[%clk 0:00:16]}  d2 {[%clk 0:00:08]} 53. Ke2 {[%clk 0:00:16]}  Kh6 {[%clk 0:00:08]} 54. Kd1 {[%clk 0:00:17]}  g5 {[%clk 0:00:09]} 55. b7 {[%clk 0:00:18]}  gxh4 {[%clk 0:00:08]} 56. b8=Q {[%clk 0:00:18]}  Kg6 {[%clk 0:00:09]} 57. Qd6+ {[%clk 0:00:19]}  Kg7 {[%clk 0:00:09]} 58. Qf6+ {[%clk 0:00:19]}  Kh7 {[%clk 0:00:10]} 59. Qxh4 {[%clk 0:00:20]}  Kh6 {[%clk 0:00:11]} 60. Qf6+ {[%clk 0:00:20]}  Kh7 {[%clk 0:00:11]} 61. e6 {[%clk 0:00:21]}  fxe6 {[%clk 0:00:11]} 62. Qf7+ {[%clk 0:00:21]}  Kh6 {[%clk 0:00:12]} 63. Qxe6+ {[%clk 0:00:22]}  Kg5 {[%clk 0:00:12]} 64. Qe3+ {[%clk 0:00:23]}  Kg4 {[%clk 0:00:12]} 65. Qf4+ {[%clk 0:00:23]}  Kh3 {[%clk 0:00:12]} 66. Qh4+ {[%clk 0:00:24]}  Kg2 {[%clk 0:00:13]} 67. Qxh5 {[%clk 0:00:25]}  Kf1 {[%clk 0:00:14]} 68. g4 {[%clk 0:00:25]}  Kxf2 {[%clk 0:00:14]} 69. g5 {[%clk 0:00:26]}  Kf1 {[%clk 0:00:14]} 70. g6 {[%clk 0:00:26]}  Kf2 {[%clk 0:00:15]} 71. g7 {[%clk 0:00:27]}  Kf1 {[%clk 0:00:16]} 72. g8=Q {[%clk 0:00:26]}  Kf2 {[%clk 0:00:17]} 73. Qhf7+ {[%clk 0:00:27]}  Ke3 {[%clk 0:00:17]} 74. Qg3+ {[%clk 0:00:27]}  Ke4 {[%clk 0:00:17]} 75. Qgf3+ {[%clk 0:00:26]}  Kd4 {[%clk 0:00:18]} 76. Q7f4+ {[%clk 0:00:25]}  Kc5 {[%clk 0:00:17]} 77. Qc6# {[%clk 0:00:25]} 1-0


[Site "https://www.chess.com"]

[Event "Titled Tuesday Blitz August 17 2021"]
[White "Quparadze, Giga"]
[Black "Boskovic, Drasko"]
[WhiteFideId "13602250"]
[BlackFideId "927368"]
[WhiteElo "2658"]
[BlackElo "2388"]
[Result "1-0"]
[Round "01"]
[TimeControl "180+1"]
[Date "2021.08.17"]
[WhiteClock "0:01:36"]
[BlackClock "0:00:04"]

1. e4 {[%clk 0:03:00]}  c5 {[%clk 0:02:56]} 2. Nf3 {[%clk 0:03:00]}  Nc6 {[%clk 0:02:54]} 3. Bb5 {[%clk 0:02:58]}  d6 {[%clk 0:02:44]} 4. O-O {[%clk 0:02:57]}  Bd7 {[%clk 0:02:37]} 5. Re1 {[%clk 0:02:56]}  Nf6 {[%clk 0:02:38]} 6. Nc3 {[%clk 0:02:55]}  a6 {[%clk 0:02:30]} 7. Bxc6 {[%clk 0:02:55]}  Bxc6 {[%clk 0:02:31]} 8. d4 {[%clk 0:02:54]}  cxd4 {[%clk 0:02:24]} 9. Nxd4 {[%clk 0:02:55]}  e5 {[%clk 0:02:24]} 10. Nxc6 {[%clk 0:02:53]}  bxc6 {[%clk 0:02:25]} 11. Bg5 {[%clk 0:02:53]}  Be7 {[%clk 0:01:44]} 12. Qd3 {[%clk 0:02:53]}  O-O {[%clk 0:01:08]} 13. Rad1 {[%clk 0:02:47]}  Rb8 {[%clk 0:00:56]} 14. b3 {[%clk 0:02:44]}  Qa5 {[%clk 0:00:49]} 15. Na4 {[%clk 0:02:35]}  Rfd8 {[%clk 0:00:45]} 16. c4 {[%clk 0:02:32]}  h6 {[%clk 0:00:38]} 17. Bxf6 {[%clk 0:02:31]}  Bxf6 {[%clk 0:00:39]} 18. Qd2 {[%clk 0:02:29]}  Qxd2 {[%clk 0:00:38]} 19. Rxd2 {[%clk 0:02:30]}  Bg5 {[%clk 0:00:34]} 20. Rd3 {[%clk 0:02:30]}  Be7 {[%clk 0:00:34]} 21. Red1 {[%clk 0:02:30]}  Kf8 {[%clk 0:00:34]} 22. g3 {[%clk 0:02:29]}  g6 {[%clk 0:00:34]} 23. f4 {[%clk 0:02:28]}  exf4 {[%clk 0:00:33]} 24. gxf4 {[%clk 0:02:29]}  Ke8 {[%clk 0:00:33]} 25. Kg2 {[%clk 0:02:29]}  Rd7 {[%clk 0:00:28]} 26. Nc5 {[%clk 0:02:25]}  Ra7 {[%clk 0:00:27]} 27. Na4 {[%clk 0:02:22]}  Rab7 {[%clk 0:00:27]} 28. Kf3 {[%clk 0:02:22]}  Rb4 {[%clk 0:00:27]} 29. Nc3 {[%clk 0:02:20]}  a5 {[%clk 0:00:27]} 30. e5 {[%clk 0:02:18]}  dxe5 {[%clk 0:00:27]} 31. fxe5 {[%clk 0:02:19]}  R4b7 {[%clk 0:00:26]} 32. e6 {[%clk 0:02:18]}  fxe6 {[%clk 0:00:26]} 33. Re1 {[%clk 0:02:18]}  Bb4 {[%clk 0:00:24]} 34. Rxe6+ {[%clk 0:02:17]}  Re7 {[%clk 0:00:25]} 35. Rxc6 {[%clk 0:02:16]}  Bxc3 {[%clk 0:00:23]} 36. Rxc3 {[%clk 0:02:17]}  Kd7 {[%clk 0:00:23]} 37. Rxg6 {[%clk 0:02:16]}  Rf8+ {[%clk 0:00:24]} 38. Kg3 {[%clk 0:02:17]}  Re2 {[%clk 0:00:24]} 39. Rd3+ {[%clk 0:02:16]}  Kc7 {[%clk 0:00:25]} 40. Rxh6 {[%clk 0:02:10]}  Rxa2 {[%clk 0:00:24]} 41. Rf3 {[%clk 0:02:09]}  Rg8+ {[%clk 0:00:23]} 42. Kh3 {[%clk 0:02:07]}  Rg7 {[%clk 0:00:22]} 43. Rff6 {[%clk 0:02:01]}  Rb2 {[%clk 0:00:19]} 44. Rc6+ {[%clk 0:02:01]}  Kd7 {[%clk 0:00:18]} 45. Rhd6+ {[%clk 0:01:52]}  Ke7 {[%clk 0:00:18]} 46. Re6+ {[%clk 0:01:48]}  Kd7 {[%clk 0:00:18]} 47. Rcd6+ {[%clk 0:01:48]}  Kc7 {[%clk 0:00:19]} 48. Rd3 {[%clk 0:01:46]}  Rh7+ {[%clk 0:00:18]} 49. Kg4 {[%clk 0:01:46]}  Rhxh2 {[%clk 0:00:13]} 50. Ra6 {[%clk 0:01:46]}  Rhg2+ {[%clk 0:00:09]} 51. Kf4 {[%clk 0:01:46]}  Rbf2+ {[%clk 0:00:07]} 52. Ke4 {[%clk 0:01:44]}  Rg4+ {[%clk 0:00:06]} 53. Ke5 {[%clk 0:01:42]}  Rg5+ {[%clk 0:00:06]} 54. Kd4 {[%clk 0:01:42]}  Rg4+ {[%clk 0:00:03]} 55. Kc3 {[%clk 0:01:41]}  Rf5 {[%clk 0:00:04]} 56. Rh3 {[%clk 0:01:40]}  Kb7 {[%clk 0:00:04]} 57. Re6 {[%clk 0:01:40]}  Rf7 {[%clk 0:00:03]} 58. Rh5 {[%clk 0:01:38]}  Rg3+ {[%clk 0:00:03]} 59. Kb2 {[%clk 0:01:38]}  Rff3 {[%clk 0:00:04]} 60. Rh7+ {[%clk 0:01:36]} 1-0


[Site "https://www.chess.com"]

[Event "Titled Tuesday Blitz August 17 2021"]
[White "Rodchenkov, Vitaly"]
[Black "Maze, Sebastien"]
[WhiteFideId "4152964"]
[BlackFideId "613762"]
[WhiteElo "2337"]
[BlackElo "2462"]
[Result "1-0"]
[Round "01"]
[TimeControl "180+1"]
[Date "2021.08.18"]
[WhiteClock "0:00:49"]
[BlackClock "0:00:07"]

1. e4 {[%clk 0:03:00]}  c5 {[%clk 0:02:59]} 2. Nf3 {[%clk 0:03:00]}  Nc6 {[%clk 0:02:59]} 3. d4 {[%clk 0:03:00]}  cxd4 {[%clk 0:02:59]} 4. Nxd4 {[%clk 0:03:00]}  g6 {[%clk 0:02:58]} 5. Nc3 {[%clk 0:03:00]}  Bg7 {[%clk 0:02:58]} 6. Nb3 {[%clk 0:03:00]}  Nf6 {[%clk 0:02:58]} 7. Be2 {[%clk 0:03:00]}  d6 {[%clk 0:02:58]} 8. O-O {[%clk 0:02:59]}  O-O {[%clk 0:02:58]} 9. Re1 {[%clk 0:02:59]}  a6 {[%clk 0:02:58]} 10. Bg5 {[%clk 0:02:58]}  b5 {[%clk 0:02:57]} 11. Bf1 {[%clk 0:02:58]}  Bb7 {[%clk 0:02:57]} 12. Qd2 {[%clk 0:02:58]}  Nd7 {[%clk 0:02:57]} 13. a4 {[%clk 0:02:54]}  b4 {[%clk 0:02:56]} 14. Nd5 {[%clk 0:02:54]}  Bxb2 {[%clk 0:02:49]} 15. Rab1 {[%clk 0:02:53]}  Bg7 {[%clk 0:02:48]} 16. Nxb4 {[%clk 0:02:49]}  Nxb4 {[%clk 0:02:19]} 17. Qxb4 {[%clk 0:02:48]}  Rb8 {[%clk 0:02:18]} 18. Qd2 {[%clk 0:02:35]}  Qc7 {[%clk 0:02:01]} 19. Bxe7 {[%clk 0:02:31]}  Bc3 {[%clk 0:01:30]} 20. Qxd6 {[%clk 0:02:29]}  Rbc8 {[%clk 0:01:28]} 21. Bxf8 {[%clk 0:02:24]}  Nxf8 {[%clk 0:01:22]} 22. Qxc7 {[%clk 0:02:10]}  Rxc7 {[%clk 0:01:22]} 23. Re3 {[%clk 0:02:10]}  Ne6 {[%clk 0:01:21]} 24. Bd3 {[%clk 0:02:02]}  Bc6 {[%clk 0:01:16]} 25. a5 {[%clk 0:02:00]}  Ba4 {[%clk 0:01:07]} 26. Bxa6 {[%clk 0:01:55]}  Bxb3 {[%clk 0:01:07]} 27. cxb3 {[%clk 0:01:49]}  Bxa5 {[%clk 0:01:06]} 28. Bc4 {[%clk 0:01:46]}  Nd4 {[%clk 0:00:51]} 29. Kf1 {[%clk 0:01:39]}  Bb6 {[%clk 0:00:48]} 30. Rd3 {[%clk 0:01:38]}  Kg7 {[%clk 0:00:44]} 31. Rbd1 {[%clk 0:01:35]}  Rd7 {[%clk 0:00:40]} 32. f4 {[%clk 0:01:32]}  Kf6 {[%clk 0:00:39]} 33. g3 {[%clk 0:01:29]}  g5 {[%clk 0:00:39]} 34. Kg2 {[%clk 0:01:24]}  Rd8 {[%clk 0:00:37]} 35. e5+ {[%clk 0:01:22]}  Kf5 {[%clk 0:00:36]} 36. Bxf7 {[%clk 0:01:21]}  gxf4 {[%clk 0:00:36]} 37. gxf4 {[%clk 0:01:21]}  Rf8 {[%clk 0:00:15]} 38. Bc4 {[%clk 0:01:10]}  Ne2 {[%clk 0:00:11]} 39. Rd6 {[%clk 0:00:57]}  Nxf4+ {[%clk 0:00:11]} 40. Kf3 {[%clk 0:00:57]}  Bc5 {[%clk 0:00:08]} 41. Rf6+ {[%clk 0:00:57]}  Rxf6 {[%clk 0:00:08]} 42. exf6 {[%clk 0:00:58]}  Ng6 {[%clk 0:00:09]} 43. f7 {[%clk 0:00:55]}  Ne5+ {[%clk 0:00:08]} 44. Ke2 {[%clk 0:00:54]}  Kf6 {[%clk 0:00:08]} 45. Rf1+ {[%clk 0:00:53]}  Kg7 {[%clk 0:00:07]} 46. Rf5 {[%clk 0:00:51]}  Bd6 {[%clk 0:00:07]} 47. f8=Q+ {[%clk 0:00:49]} 1-0


[Site "https://www.chess.com"]

[Event "Titled Tuesday Blitz August 17 2021"]
[White "Rottenwohrer Suarez, Juan"]
[Black "Garcia Herrera, Enrique Ric"]
[WhiteFideId "32068182"]
[BlackFideId "5115124"]
[WhiteElo "2158"]
[BlackElo "1875"]
[Result "1-0"]
[Round "01"]
[TimeControl "180+1"]
[Date "2021.08.18"]
[WhiteClock "0:00:04"]
[BlackClock "0:00:06"]

1. Nf3 {[%clk 0:03:00]}  c5 {[%clk 0:02:59]} 2. c4 {[%clk 0:03:00]}  Nc6 {[%clk 0:02:57]} 3. Nc3 {[%clk 0:03:00]}  e5 {[%clk 0:02:55]} 4. g3 {[%clk 0:03:00]}  g6 {[%clk 0:02:54]} 5. Bg2 {[%clk 0:03:00]}  Bg7 {[%clk 0:02:54]} 6. O-O {[%clk 0:03:00]}  Nge7 {[%clk 0:02:54]} 7. Ne1 {[%clk 0:03:01]}  O-O {[%clk 0:02:51]} 8. Nc2 {[%clk 0:03:01]}  d6 {[%clk 0:02:51]} 9. Ne3 {[%clk 0:03:01]}  Be6 {[%clk 0:02:51]} 10. Ned5 {[%clk 0:03:02]}  a6 {[%clk 0:02:51]} 11. a3 {[%clk 0:02:53]}  Rb8 {[%clk 0:02:43]} 12. b4 {[%clk 0:02:50]}  b5 {[%clk 0:02:38]} 13. d3 {[%clk 0:02:46]}  bxc4 {[%clk 0:02:27]} 14. dxc4 {[%clk 0:02:41]}  cxb4 {[%clk 0:02:26]} 15. axb4 {[%clk 0:02:36]}  Nxb4 {[%clk 0:02:25]} 16. Nxb4 {[%clk 0:02:35]}  Rxb4 {[%clk 0:02:25]} 17. Rxa6 {[%clk 0:02:35]}  Rxc4 {[%clk 0:02:21]} 18. Rxd6 {[%clk 0:02:34]}  Qa5 {[%clk 0:01:56]} 19. Ne4 {[%clk 0:02:33]}  Nf5 {[%clk 0:01:51]} 20. Rxe6 {[%clk 0:02:10]}  fxe6 {[%clk 0:01:47]} 21. Ng5 {[%clk 0:02:10]}  Qb6 {[%clk 0:01:20]} 22. Nxe6 {[%clk 0:02:08]}  Rfc8 {[%clk 0:00:54]} 23. Bg5 {[%clk 0:01:17]}  Kh8 {[%clk 0:00:32]} 24. Bd5 {[%clk 0:01:00]}  Rc2 {[%clk 0:00:24]} 25. e4 {[%clk 0:00:51]}  Nd4 {[%clk 0:00:21]} 26. Be3 {[%clk 0:00:51]}  Qb4 {[%clk 0:00:16]} 27. Ng5 {[%clk 0:00:47]}  h6 {[%clk 0:00:16]} 28. Nf7+ {[%clk 0:00:42]}  Kh7 {[%clk 0:00:16]} 29. Qg4 {[%clk 0:00:28]}  Qb6 {[%clk 0:00:16]} 30. Qh3 {[%clk 0:00:20]}  Qf6 {[%clk 0:00:14]} 31. Nxh6 {[%clk 0:00:16]}  Nf3+ {[%clk 0:00:13]} 32. Kh1 {[%clk 0:00:14]}  Ng5 {[%clk 0:00:13]} 33. Bxg5 {[%clk 0:00:06]}  Qxg5 {[%clk 0:00:14]} 34. Nf7+ {[%clk 0:00:02]}  Qh5 {[%clk 0:00:14]} 35. Qxh5+ {[%clk 0:00:02]}  gxh5 {[%clk 0:00:15]} 36. Nd6 {[%clk 0:00:02]}  Rd8 {[%clk 0:00:15]} 37. Nf5 {[%clk 0:00:03]}  Bf6 {[%clk 0:00:14]} 38. h4 {[%clk 0:00:03]}  Rb8 {[%clk 0:00:11]} 39. Kg2 {[%clk 0:00:04]}  Rbb2 {[%clk 0:00:12]} 40. Ne3 {[%clk 0:00:04]}  Rd2 {[%clk 0:00:11]} 41. Be6 {[%clk 0:00:04]}  Rbc2 {[%clk 0:00:11]} 42. Bf5+ {[%clk 0:00:05]}  Kg7 {[%clk 0:00:10]} 43. Nxc2 {[%clk 0:00:06]}  Rxc2 {[%clk 0:00:11]} 44. Rd1 {[%clk 0:00:06]}  Kf8 {[%clk 0:00:10]} 45. Rd7 {[%clk 0:00:06]}  Be7 {[%clk 0:00:11]} 46. Rb7 {[%clk 0:00:06]}  Bc5 {[%clk 0:00:11]} 47. Rb8+ {[%clk 0:00:05]}  Ke7 {[%clk 0:00:11]} 48. Rh8 {[%clk 0:00:05]}  Rxf2+ {[%clk 0:00:11]} 49. Kh3 {[%clk 0:00:05]}  Rf3 {[%clk 0:00:10]} 50. Rh7+ {[%clk 0:00:05]}  Kf6 {[%clk 0:00:09]} 51. Rxh5 {[%clk 0:00:06]}  Bf2 {[%clk 0:00:09]} 52. Rg5 {[%clk 0:00:05]}  Ra3 {[%clk 0:00:08]} 53. Rg4 {[%clk 0:00:05]}  Rb3 {[%clk 0:00:07]} 54. h5 {[%clk 0:00:05]}  Rb1 {[%clk 0:00:07]} 55. Kg2 {[%clk 0:00:04]}  Be3 {[%clk 0:00:08]} 56. h6 {[%clk 0:00:04]}  Rb2+ {[%clk 0:00:06]} 57. Kh3 {[%clk 0:00:04]}  Rb1 {[%clk 0:00:06]} 58. h7 {[%clk 0:00:04]}  Rh1+ {[%clk 0:00:06]} 59. Kg2 {[%clk 0:00:04]}  Rh6 {[%clk 0:00:07]} 60. Rg8 {[%clk 0:00:04]}  Kf7 {[%clk 0:00:06]} 61. h8=Q {[%clk 0:00:04]} 1-0


[Site "https://www.chess.com"]

[Event "Titled Tuesday Blitz August 17 2021"]
[White "Sadovsky, Artem"]
[Black "Muradov, Soltan"]
[WhiteFideId "4155840"]
[BlackFideId "14002108"]
[WhiteElo "2442"]
[BlackElo "1854"]
[Result "1-0"]
[Round "01"]
[TimeControl "180+1"]
[Date "2021.08.18"]
[WhiteClock "0:00:03"]
[BlackClock "0:00:02"]

1. Nf3 {[%clk 0:02:53]}  Nf6 {[%clk 0:02:56]} 2. c4 {[%clk 0:02:53]}  e6 {[%clk 0:02:54]} 3. b3 {[%clk 0:02:52]}  b6 {[%clk 0:02:53]} 4. Bb2 {[%clk 0:02:53]}  Bb7 {[%clk 0:02:53]} 5. e3 {[%clk 0:02:53]}  c5 {[%clk 0:02:52]} 6. Be2 {[%clk 0:02:54]}  Be7 {[%clk 0:02:53]} 7. O-O {[%clk 0:02:54]}  d5 {[%clk 0:02:52]} 8. cxd5 {[%clk 0:02:53]}  Bxd5 {[%clk 0:02:50]} 9. Nc3 {[%clk 0:02:52]}  Bb7 {[%clk 0:02:50]} 10. d4 {[%clk 0:02:52]}  cxd4 {[%clk 0:02:47]} 11. Nxd4 {[%clk 0:02:53]}  O-O {[%clk 0:02:47]} 12. Bf3 {[%clk 0:02:54]}  Bxf3 {[%clk 0:02:42]} 13. Qxf3 {[%clk 0:02:55]}  Na6 {[%clk 0:02:42]} 14. Rfd1 {[%clk 0:02:31]}  Qe8 {[%clk 0:02:42]} 15. Nc6 {[%clk 0:02:12]}  Bc5 {[%clk 0:02:07]} 16. Nb5 {[%clk 0:02:10]}  Nd5 {[%clk 0:02:04]} 17. Qg4 {[%clk 0:01:26]}  f6 {[%clk 0:02:00]} 18. Ncd4 {[%clk 0:01:15]}  Nac7 {[%clk 0:01:45]} 19. Nxe6 {[%clk 0:00:57]}  Qxe6 {[%clk 0:00:56]} 20. Qxe6+ {[%clk 0:00:54]}  Nxe6 {[%clk 0:00:56]} 21. Rxd5 {[%clk 0:00:54]}  a6 {[%clk 0:00:57]} 22. Nd6 {[%clk 0:00:37]}  Rfd8 {[%clk 0:00:54]} 23. Rad1 {[%clk 0:00:38]}  Rd7 {[%clk 0:00:50]} 24. Ne4 {[%clk 0:00:32]}  Rxd5 {[%clk 0:00:50]} 25. Rxd5 {[%clk 0:00:33]}  Bf8 {[%clk 0:00:46]} 26. Rd1 {[%clk 0:00:22]}  Rc8 {[%clk 0:00:33]} 27. Rc1 {[%clk 0:00:22]}  Rd8 {[%clk 0:00:34]} 28. Kf1 {[%clk 0:00:21]}  f5 {[%clk 0:00:34]} 29. Ng3 {[%clk 0:00:14]}  Rd2 {[%clk 0:00:33]} 30. Bc3 {[%clk 0:00:14]}  Rxa2 {[%clk 0:00:33]} 31. Nxf5 {[%clk 0:00:15]}  Nc5 {[%clk 0:00:31]} 32. Rd1 {[%clk 0:00:11]}  Nxb3 {[%clk 0:00:29]} 33. Rd7 {[%clk 0:00:06]}  g6 {[%clk 0:00:19]} 34. Ne7+ {[%clk 0:00:06]}  Kf7 {[%clk 0:00:17]} 35. Nc8+ {[%clk 0:00:04]}  Ke6 {[%clk 0:00:18]} 36. Rd8 {[%clk 0:00:03]}  Bc5 {[%clk 0:00:16]} 37. g4 {[%clk 0:00:02]}  Nc1 {[%clk 0:00:16]} 38. Bd4 {[%clk 0:00:01]}  Nd3 {[%clk 0:00:15]} 39. Bxc5 {[%clk 0:00:01]}  Nxc5 {[%clk 0:00:16]} 40. Kg2 {[%clk 0:00:02]}  Ne4 {[%clk 0:00:16]} 41. Nxb6 {[%clk 0:00:01]}  Rxf2+ {[%clk 0:00:15]} 42. Kg1 {[%clk 0:00:02]}  Rb2 {[%clk 0:00:13]} 43. Re8+ {[%clk 0:00:02]}  Kf7 {[%clk 0:00:12]} 44. Rxe4 {[%clk 0:00:03]}  Rxb6 {[%clk 0:00:12]} 45. Ra4 {[%clk 0:00:03]}  Rb3 {[%clk 0:00:09]} 46. Kf2 {[%clk 0:00:04]}  Rb2+ {[%clk 0:00:09]} 47. Kf3 {[%clk 0:00:04]}  Rb6 {[%clk 0:00:09]} 48. h4 {[%clk 0:00:04]}  h6 {[%clk 0:00:09]} 49. Kf4 {[%clk 0:00:04]}  Kf6 {[%clk 0:00:09]} 50. Ra5 {[%clk 0:00:04]}  Rb4+ {[%clk 0:00:08]} 51. e4 {[%clk 0:00:05]}  Rb6 {[%clk 0:00:08]} 52. Ra4 {[%clk 0:00:03]}  Ke6 {[%clk 0:00:08]} 53. Ra5 {[%clk 0:00:03]}  Kf6 {[%clk 0:00:08]} 54. g5+ {[%clk 0:00:04]}  hxg5+ {[%clk 0:00:08]} 55. hxg5+ {[%clk 0:00:05]}  Ke6 {[%clk 0:00:08]} 56. Re5+ {[%clk 0:00:05]}  Kf7 {[%clk 0:00:08]} 57. Ra5 {[%clk 0:00:05]}  Ke6 {[%clk 0:00:07]} 58. Ra4 {[%clk 0:00:04]}  Kf7 {[%clk 0:00:08]} 59. Ke5 {[%clk 0:00:04]}  Rb5+ {[%clk 0:00:07]} 60. Kd6 {[%clk 0:00:05]}  Rxg5 {[%clk 0:00:07]} 61. e5 {[%clk 0:00:06]}  Rg1 {[%clk 0:00:05]} 62. Rd4 {[%clk 0:00:02]}  Re1 {[%clk 0:00:04]} 63. Rf4+ {[%clk 0:00:02]}  Ke8 {[%clk 0:00:02]} 64. Ke6 {[%clk 0:00:03]} 1-0


[Site "https://www.chess.com"]